fUST/lending_fUST_20250921
["ID","MTS","AMOUNT","RATE_DAILY","PERIOD"]
[386554785,1758387039981,-480.0,0.00020612,2]
[386554786,1758387039991,-480.0,0.00020612,2]
[386554787,1758387040000,-480.0,0.00020612,2]
[386554788,1758387040011,-480.0,0.00020612,2]
[386554789,1758387040021,-480.0,0.00020612,2]
[386554790,1758387040031,-423.40459866,0.00020612,2]
[386554791,1758387040040,-1389.71,0.00020612,2]
[386554792,1758387040051,-480.0,0.00020612,2]
[386554793,1758387040061,-480.0,0.00020612,2]
[386554794,1758387040071,-200.03261799,0.00020612,2]
[386554795,1758387040080,-480.0,0.00020612,2]
[386554796,1758387040089,-457.32631274,0.00020612,2]
[386554797,1758387040102,-22.67368726,0.00020612,2]
[386554798,1758387040111,-480.0,0.00020612,2]
[386554799,1758387040121,-480.0,0.00020612,2]
[386554800,1758387040130,-480.0,0.00020612,2]
[386554801,1758387040139,-480.0,0.00020612,2]
[386554802,1758387040149,-307.30933101,0.00020612,2]
[386554803,1758387040158,-480.0,0.00020612,2]
[386554804,1758387040168,-480.0,0.00020612,2]
[386554806,1758387040178,-480.0,0.00020612,2]
[386554807,1758387040187,-480.0,0.00020612,2]
[386554808,1758387040197,-480.0,0.00020612,2]
[386554809,1758387040206,-480.0,0.00020612,2]
[386554810,1758387040215,-482.18892815,0.00020612,2]
[386554811,1758387040225,-480.0,0.00020612,2]
[386554812,1758387040235,-323.07144135,0.00020612,2]
[386554813,1758387040244,-480.0,0.00020612,2]
[386554814,1758387040253,-480.0,0.00020612,2]
[386554815,1758387040263,-480.0,0.00020612,2]
[386554816,1758387040273,-480.0,0.00020612,2]
[386554818,1758387040282,-480.0,0.00020612,2]
[386554819,1758387040292,-480.0,0.00020612,2]
[386554820,1758387040302,-480.0,0.00020612,2]
[386554821,1758387040311,-480.0,0.00020612,2]
[386554822,1758387040321,-480.0,0.00020612,2]
[386554823,1758387040330,-480.0,0.00020612,2]
[386554824,1758387040339,-480.0,0.00020614,2]
[386554825,1758387040348,-162.50626486,0.00020614,2]
[386554826,1758387040358,-480.0,0.00020614,2]
[386554827,1758387040367,-480.0,0.00020614,2]
[386554828,1758387040377,-480.0,0.00020614,2]
[386554829,1758387040387,-480.0,0.00020615,2]
[386554830,1758387040396,-216.66644923,0.00020615,3]
[386554831,1758387040406,-629.41936986,0.00020615,2]
[386554832,1758387040415,-480.0,0.00020615,2]
[386554833,1758387040425,-480.0,0.00020615,2]
[386554834,1758387040435,-151.0,0.00020615,2]
[386554835,1758387040445,-151.0,0.00020615,2]
[386554836,1758387040457,-47266.73611835,0.00020615,2]
[386554837,1758387040470,-21821.9409303,0.00020615,2]
[386554838,1758387040489,-2471.58886386,0.00020615,2]
[386554846,1758387043264,-500.0,0.00020585,2]
[386554847,1758387043278,-500.0,0.00020585,2]
[386554848,1758387043290,-500.0,0.00020585,2]
[386554849,1758387043302,-500.0,0.00020585,2]
[386554850,1758387043314,-500.0,0.00020585,2]
[386554851,1758387043326,-500.0,0.00020585,2]
[386554852,1758387043337,-500.0,0.00020585,2]
[386554853,1758387043350,-500.0,0.00020585,2]
[386554854,1758387043361,-500.0,0.00020585,2]
[386554855,1758387043373,-500.0,0.00020585,2]
[386554856,1758387043386,-500.0,0.00020585,2]
[386554857,1758387043397,-500.0,0.00020585,2]
[386554858,1758387043409,-500.0,0.00020585,2]
[386554859,1758387043423,-500.0,0.00020585,2]
[386554860,1758387043434,-500.0,0.00020585,2]
[386554861,1758387043446,-500.0,0.00020585,2]
[386554862,1758387043458,-500.0,0.00020585,2]
[386554863,1758387043469,-500.0,0.00020585,2]
[386554864,1758387043481,-500.0,0.00020585,2]
[386554865,1758387043492,-500.0,0.00020585,2]
[386554866,1758387043504,-500.0,0.00020585,2]
[386554868,1758387043516,-500.0,0.00020585,2]
[386554871,1758387043527,-500.0,0.00020585,2]
[386554873,1758387043539,-500.0,0.00020585,2]
[386554874,1758387043551,-500.0,0.00020585,2]
[386554875,1758387043563,-500.0,0.00020585,2]
[386554876,1758387043575,-500.0,0.00020585,2]
[386554877,1758387043588,-500.0,0.00020585,2]
[386554878,1758387043599,-500.0,0.00020585,2]
[386554879,1758387043611,-500.0,0.00020585,2]
[386554880,1758387043623,-500.0,0.00020585,2]
[386554881,1758387043634,-500.0,0.00020585,2]
[386554882,1758387043646,-500.0,0.00020585,2]
[386554883,1758387043657,-272.5479052,0.00020585,2]
[386554884,1758387043669,-480.0,0.00020588,2]
[386554885,1758387043681,-73221.1434315,0.00020615,2]
[386554886,1758387043697,-276.83912334,0.00020615,2]
[386554893,1758387046500,-480.0,0.00020612,2]
[386554894,1758387046510,-151.0,0.00020615,2]
[386554895,1758387046519,-2422.1,0.00020615,2]
[386554897,1758387060292,1864.762721,0.00019614,2]
[386554898,1758387068972,3718.15863709,0.000199,2]
[386554899,1758387107073,378.91,0.00019239,2]
[386554900,1758387107644,757.82,0.00020155,2]
[386554901,1758387156212,3280.35864191,0.00020085,2]
[386554902,1758387156234,1719.64135809,0.00020085,2]
[386554903,1758387156357,5000.0,0.00019178,2]
[386554904,1758387156488,3280.36864191,0.00019178,2]
[386554905,1758387156510,894.33180538,0.00019178,2]
[386554906,1758387194732,364.44,0.00019235,2]
[386554907,1758387195281,728.88,0.00020151,2]
[386554908,1758387209406,582.61518143,0.00019692,2]
[386554909,1758387211563,2328.13026499,0.00019692,2]
[386554910,1758387251899,3594.22001567,0.000199,2]
[386554911,1758387281333,350.53,0.00019235,2]
[386554912,1758387281966,701.05,0.00020151,2]
[386554913,1758387298728,455.81273253,0.00019587,2]
[386554914,1758387298749,9544.18726747,0.00019587,2]
[386554915,1758387335416,455.82273253,0.00020515,2]
[386554916,1758387335440,238.86917428,0.00020515,2]
[386554917,1758387352757,9761.14082572,0.00020488,2]
[386554918,1758387352780,10000.01,0.00020488,2]
[386554919,1758387352802,10000.01,0.00020488,2]
[386554920,1758387352824,10000.01,0.00020488,2]
[386554921,1758387352846,9877.78392399,0.00020488,2]
[386554922,1758387366306,122.22607601,0.00019228,2]
[386554923,1758387366332,214.91392399,0.00019228,2]
[386554924,1758387366878,674.29,0.00020144,2]
[386554927,1758387411512,-160.0,0.00020584,2]
[386554928,1758387411541,-160.0,0.00020584,2]
[386554929,1758387411572,-1200.0,0.00020584,2]
[386554930,1758387411601,-1200.0,0.00020584,2]
[386554931,1758387411630,-467.27611667,0.00020585,2]
[386554932,1758387411659,-480.0,0.00020585,2]
[386554933,1758387411688,-561.46,0.00020585,2]
[386554934,1758387411716,-480.0,0.00020585,2]
[386554935,1758387411745,-126.55708808,0.00020585,2]
[386554936,1758387422813,-329.4235905,0.00020585,2]
[386554937,1758387422856,-480.0,0.00020585,2]
[386554938,1758387422896,-480.0,0.00020585,2]
[386554939,1758387422959,-480.0,0.00020585,2]
[386554940,1758387423001,-500.0,0.00020585,2]
[386554941,1758387423044,-178.8189706,0.00020585,2]
[386554942,1758387423099,-500.0,0.00020585,2]
[386554943,1758387423142,-500.0,0.00020585,2]
[386554944,1758387423186,-392.84906544,0.00020585,2]
[386554945,1758387423229,-399.09425306,0.00020585,2]
[386554946,1758387423268,-468.73986291,0.00020585,2]
[386554947,1758387423313,-82.15851498,0.00020585,2]
[386554948,1758387432806,-300.0,0.00020584,2]
[386554949,1758387432836,-480.0,0.00020585,2]
[386554950,1758387432868,-417.84148502,0.00020585,2]
[386554951,1758387432900,-500.0,0.00020585,2]
[386554952,1758387432932,-500.0,0.00020585,2]
[386554953,1758387432962,-500.0,0.00020585,2]
[386554954,1758387432993,-500.0,0.00020585,2]
[386554955,1758387433025,-500.0,0.00020585,2]
[386554956,1758387433057,-500.0,0.00020585,2]
[386554957,1758387433087,-500.0,0.00020585,2]
[386554958,1758387433118,-104.32702996,0.00020585,2]
[386554959,1758387436661,3537.03349471,0.000199,2]
[386554960,1758387442862,-160.0,0.00020584,2]
[386554961,1758387442889,-1200.0,0.00020584,2]
[386554962,1758387442919,-200.90059931,0.00020585,2]
[386554963,1758387442950,-395.67297004,0.00020585,2]
[386554964,1758387442977,-480.0,0.00020586,2]
[386554965,1758387443008,-480.0,0.00020586,2]
[386554966,1758387443036,-637.3,0.00020586,2]
[386554967,1758387443064,-341.63356594,0.00020586,2]
[386554968,1758387443090,-234.88236386,0.00020586,2]
[386554969,1758387443117,-275.97668918,0.00020587,2]
[386554970,1758387443144,-480.0,0.00020587,2]
[386554971,1758387452296,348.05,0.00019412,2]
[386554972,1758387452838,696.1,0.00020337,2]
[386554973,1758387453978,786.3637439,0.00019593,2]
[386554974,1758387490529,9213.6462561,0.00020488,2]
[386554975,1758387490553,10000.01,0.00020488,2]
[386554976,1758387490576,10000.01,0.00020488,2]
[386554977,1758387490600,10000.01,0.00020488,2]
[386554978,1758387490623,10000.01,0.00020488,2]
[386554979,1758387490647,10000.01,0.00020488,2]
[386554980,1758387490671,10000.01,0.00020488,2]
[386554981,1758387490695,10000.01,0.00020488,2]
[386554982,1758387490720,10000.01,0.00020488,2]
[386554983,1758387490743,10000.01,0.00020488,2]
[386554984,1758387490775,11796.38847102,0.00020488,2]
[386554985,1758387531118,160.0,0.0002,3]
[386554986,1758387533519,292.9678341,0.000205,2]
[386554987,1758387536577,421.99,0.00019226,2]
[386554988,1758387537084,843.99,0.00020141,2]
[386554989,1758387564171,-300.0,0.00020584,2]
[386554990,1758387564199,-480.0,0.00020585,2]
[386554991,1758387564233,-480.0,0.00020585,2]
[386554992,1758387564263,-480.0,0.00020585,2]
[386554993,1758387564294,-592.4,0.00020585,2]
[386554994,1758387564327,-533.9,0.00020585,2]
[386554995,1758387564359,-160.0,0.00020585,2]
[386554996,1758387564388,-480.0,0.00020585,2]
[386554997,1758387564417,-480.0,0.00020585,2]
[386554998,1758387564444,-160.0,0.00020585,2]
[386554999,1758387564473,-607.51,0.00020585,2]
[386555000,1758387564501,-12.39,0.00020585,2]
[386555001,1758387564943,-467.61,0.00020585,2]
[386555002,1758387564974,-1733.31,0.00020586,2]
[386555003,1758387565006,-500.0,0.00020586,2]
[386555004,1758387565040,-650.29796286,0.00020586,2]
[386555005,1758387565073,-211.01047256,0.00020586,2]
[386555006,1758387565102,-1110.34312916,0.00020586,2]
[386555007,1758387565160,-654.86687084,0.00020586,2]
[386555008,1758387565191,-486.59,0.00020586,2]
[386555009,1758387565220,-480.0,0.00020587,2]
[386555010,1758387565254,-1419.91,0.00020587,2]
[386555011,1758387565286,-480.0,0.00020587,2]
[386555012,1758387565316,-480.0,0.00020587,2]
[386555013,1758387565345,-480.0,0.00020587,2]
[386555014,1758387565388,-1140.67,0.00020587,2]
[386555015,1758387565416,-480.0,0.00020587,2]
[386555016,1758387565444,-480.0,0.00020587,2]
[386555017,1758387565471,-480.0,0.00020587,2]
[386555018,1758387565500,-480.0,0.00020587,2]
[386555019,1758387565528,-480.0,0.00020587,2]
[386555020,1758387565557,-480.0,0.00020587,2]
[386555021,1758387565586,-480.0,0.00020587,2]
[386555022,1758387565653,-1859.33,0.00020587,2]
[386555023,1758387573191,-570.08751414,0.00020586,2]
[386555024,1758387573230,-489.42673589,0.00020587,2]
[386555025,1758387573269,-480.0,0.00020587,2]
[386555026,1758387579052,-6575.56165482,0.00020587,2]
[386555027,1758387579082,-10000.01,0.00020587,2]
[386555028,1758387579229,-10000.01,0.00020587,2]
[386555029,1758387579382,-3969.11373098,0.00020587,2]
[386555030,1758387579407,-2061.78253804,0.00020587,2]
[386555031,1758387586774,1265.3952563,0.00019603,2]
[386555032,1758387588274,-1345.03,0.00020586,2]
[386555033,1758387588304,-608.03,0.00020588,2]
[386555034,1758387588335,-1554.7,0.00020588,2]
[386555035,1758387588363,-480.0,0.00020588,2]
[386555036,1758387588395,-480.0,0.00020588,2]
[386555037,1758387588425,-480.0,0.00020588,2]
[386555038,1758387588520,-480.0,0.00020588,2]
[386555039,1758387588550,-2640.04,0.00020588,2]
[386555040,1758387588580,-1835.76,0.00020588,2]
[386555041,1758387588665,-480.0,0.00020588,2]
[386555042,1758387588696,-480.0,0.00020588,2]
[386555043,1758387588728,-480.0,0.00020588,2]
[386555044,1758387588762,-3391.77,0.00020588,2]
[386555045,1758387588945,-1895.71,0.00020588,2]
[386555046,1758387588974,-480.0,0.00020597,2]
[386555047,1758387589003,-699.25,0.00020597,2]
[386555048,1758387589031,-480.0,0.00020597,2]
[386555049,1758387589060,-480.0,0.00020598,2]
[386555050,1758387589090,-480.0,0.00020598,2]
[386555051,1758387589118,-480.0,0.00020598,2]
[386555052,1758387589238,-709.39,0.00020598,2]
[386555053,1758387589266,-559.34915716,0.00020598,2]
[386555054,1758387589294,-480.0,0.00020598,2]
[386555055,1758387589321,-480.0,0.00020598,2]
[386555056,1758387589349,-480.0,0.00020598,2]
[386555057,1758387589377,-307.56307314,0.00020598,2]
[386555058,1758387589405,-793.53,0.00020598,2]
[386555059,1758387589433,-480.0,0.00020598,2]
[386555060,1758387589461,-480.0,0.00020598,2]
[386555061,1758387589924,-59.46,0.00020598,2]
[386555062,1758387589942,-420.54,0.00020598,2]
[386555063,1758387589951,-59.46,0.00020598,2]
[386555064,1758387589965,-420.54,0.00020598,2]
[386555065,1758387589975,-39.8055394,0.00020598,2]
[386555066,1758387590017,-440.1944606,0.00020598,2]
[386555067,1758387590046,-1364.71,0.00020598,2]
[386555068,1758387590074,-480.0,0.00020598,2]
[386555069,1758387590102,-480.0,0.00020598,2]
[386555070,1758387590130,-480.0,0.00020598,2]
[386555071,1758387590157,-548.23,0.00020598,2]
[386555072,1758387590188,-480.0,0.00020598,2]
[386555073,1758387590217,-480.0,0.00020598,2]
[386555074,1758387590249,-13.7410788,0.00020598,2]
[386555075,1758387590286,-466.2589212,0.00020598,2]
[386555076,1758387590315,-480.0,0.00020598,2]
[386555077,1758387590345,-1852.22,0.00020602,10]
[386555078,1758387590373,-1543.52,0.00020602,10]
[386555079,1758387590403,-293.4621576,0.00020604,3]
[386555080,1758387590507,-729.0878424,0.00020604,3]
[386555081,1758387590536,-852.12,0.00020604,3]
[386555082,1758387590564,-426.06,0.00020604,3]
[386555083,1758387590592,-213.03,0.00020604,3]
[386555084,1758387590620,-639.14,0.00020604,3]
[386555085,1758387590860,160.0,0.0002058,2]
[386555086,1758387591053,-356.9178424,0.00020609,2]
[386555087,1758387591071,-213.03,0.00020609,2]
[386555088,1758387591084,-639.14,0.00020609,2]
[386555089,1758387591097,-4281.1343152,0.00020609,2]
[386555090,1758387591115,-480.0,0.00020587,2]
[386555091,1758387591124,-5266.6233684,0.00020609,2]
[386555092,1758387591134,-480.0,0.00020612,2]
[386555093,1758387591143,-480.0,0.00020612,2]
[386555094,1758387591152,-480.0,0.00020612,2]
[386555095,1758387591162,-480.0,0.00020612,2]
[386555096,1758387591172,-480.0,0.00020612,2]
[386555097,1758387591181,-480.0,0.00020612,2]
[386555098,1758387591190,-480.0,0.00020612,2]
[386555099,1758387591199,-500.0,0.00020612,2]
[386555100,1758387591209,-393.3866316,0.00020612,2]
[386555101,1758387591227,-86.6133684,0.00020612,2]
[386555102,1758387591237,-480.0,0.00020612,2]
[386555103,1758387591246,-480.0,0.00020612,2]
[386555104,1758387591255,-480.0,0.00020612,2]
[386555105,1758387591264,-480.0,0.00020612,2]
[386555106,1758387591273,-480.0,0.00020612,2]
[386555107,1758387591282,-480.0,0.00020612,2]
[386555108,1758387591291,-7033.3966316,0.00020612,2]
[386555109,1758387598236,-480.0,0.00020585,2]
[386555110,1758387598269,-480.0,0.00020587,2]
[386555111,1758387598325,-480.0,0.00020588,2]
[386555112,1758387598334,-7600.01,0.00020612,2]
[386555113,1758387598386,-3559.2342453,0.00020612,2]
[386555114,1758387598417,-480.0,0.00020612,2]
[386555115,1758387598447,-480.0,0.00020612,2]
[386555116,1758387598475,-480.0,0.00020612,2]
[386555117,1758387598565,-1.5415094,0.00020598,2]
[386555118,1758387598700,-478.4584906,0.00020598,2]
[386555119,1758387598731,-480.0,0.00020612,2]
[386555120,1758387598763,-486.66550178,0.00020612,2]
[386555121,1758387598793,-497.55366561,0.00020612,2]
[386555122,1758387598822,-480.0,0.00020612,2]
[386555123,1758387598851,-480.0,0.00020612,2]
[386555124,1758387598877,-480.0,0.00020612,2]
[386555125,1758387598906,-480.0,0.00020612,2]
[386555126,1758387598939,-480.0,0.00020612,2]
[386555127,1758387598969,-480.0,0.00020612,2]
[386555128,1758387599028,-480.0,0.00020612,2]
[386555129,1758387599059,-480.0,0.00020612,2]
[386555130,1758387599089,-480.0,0.00020612,2]
[386555131,1758387599116,-480.0,0.00020612,2]
[386555132,1758387599143,-480.19,0.00020612,2]
[386555133,1758387599172,-480.0,0.00020612,2]
[386555134,1758387599200,-480.0,0.00020612,2]
[386555135,1758387599228,-480.0,0.00020612,2]
[386555136,1758387599258,-480.0,0.00020612,2]
[386555137,1758387599285,-480.0,0.00020612,2]
[386555138,1758387599385,-480.0,0.00020612,2]
[386555139,1758387599412,-487.03564083,0.00020612,2]
[386555140,1758387599440,-543.70766792,0.00020612,2]
[386555141,1758387599467,-556.49275551,0.00020612,2]
[386555142,1758387599497,-480.0,0.00020612,2]
[386555143,1758387599526,-486.15753045,0.00020612,2]
[386555144,1758387599553,-489.32028551,0.00020612,2]
[386555145,1758387599582,-480.0,0.00020612,2]
[386555146,1758387599811,-2583.33,0.00020612,2]
[386555147,1758387599843,-480.0,0.00020614,2]
[386555148,1758387599872,-480.0,0.00020614,2]
[386555149,1758387599900,-480.0,0.00020614,2]
[386555150,1758387599929,-321.82,0.00020614,2]
[386555151,1758387600029,-1309.71,0.00020614,2]
[386555152,1758387600059,-602.88,0.00020614,2]
[386555153,1758387600089,-480.0,0.00020614,2]
[386555154,1758387600117,-480.0,0.00020614,2]
[386555155,1758387600146,-644.62,0.00020614,2]
[386555156,1758387600176,-480.0,0.00020614,2]
[386555157,1758387600207,-928.23,0.00020614,2]
[386555158,1758387600396,-480.0,0.00020614,2]
[386555159,1758387600425,-480.0,0.00020614,2]
[386555160,1758387600453,-605.67,0.00020614,2]
[386555161,1758387601148,-480.0,0.00020614,2]
[386555162,1758387601165,-644.62,0.00020614,2]
[386555163,1758387601179,-480.0,0.00020614,2]
[386555164,1758387601193,-928.23,0.00020614,2]
[386555165,1758387601211,-149.13,0.00020614,2]
[386555166,1758387601225,-480.0,0.00020614,2]
[386555167,1758387601250,-480.0,0.00020614,2]
[386555168,1758387601263,-605.67,0.00020614,2]
[386555169,1758387601276,-6868.67,0.00020614,2]
[386555170,1758387601292,-3989.01,0.00020614,2]
[386555171,1758387601301,-495.43,0.00020614,2]
[386555172,1758387601310,-988.54,0.00020614,2]
[386555173,1758387601327,-480.0,0.00020614,2]
[386555174,1758387601336,-3205.79,0.00020614,2]
[386555175,1758387601345,-480.0,0.00020614,2]
[386555176,1758387601353,-361.24,0.00020614,2]
[386555177,1758387601376,-389.15,0.00020614,2]
[386555178,1758387601386,-480.0,0.00020614,2]
[386555179,1758387601395,-480.0,0.00020614,2]
[386555180,1758387601404,-480.0,0.00020614,2]
[386555181,1758387601414,-2422.5639941,0.00020615,3]
[386555182,1758387601424,-480.0,0.00020616,2]
[386555183,1758387601433,-1461.0,0.00020616,2]
[386555184,1758387601443,-1483.51,0.00020616,2]
[386555185,1758387601452,-151.0,0.00020617,2]
[386555186,1758387601461,-449.0,0.00020617,2]
[386555187,1758387601470,-158.02562066,0.00020617,2]
[386555188,1758387601482,-151.0,0.00020617,2]
[386555189,1758387601491,-480.0,0.00020623,2]
[386555190,1758387601500,-480.0,0.00020623,2]
[386555191,1758387601509,-454.76038524,0.00020623,2]
[386555192,1758387608268,-500.0,0.00020584,2]
[386555193,1758387608298,-500.0,0.00020584,2]
[386555194,1758387608329,-500.0,0.00020584,2]
[386555195,1758387608358,-500.0,0.00020584,2]
[386555196,1758387608388,-500.0,0.00020584,2]
[386555197,1758387608417,-500.0,0.00020584,2]
[386555198,1758387608446,-500.0,0.00020584,2]
[386555199,1758387608473,-500.0,0.00020584,2]
[386555200,1758387608607,-480.0,0.00020585,2]
[386555201,1758387608638,-480.0,0.00020586,2]
[386555202,1758387608752,-480.0,0.00020587,2]
[386555203,1758387608780,-480.0,0.00020587,2]
[386555204,1758387608808,-480.0,0.00020587,2]
[386555205,1758387608840,-407.87,0.00020614,2]
[386555206,1758387608869,-582.7,0.00020614,2]
[386555207,1758387608898,-300.0,0.00020622,2]
[386555208,1758387608978,-3379.98038524,0.00020623,2]
[386555209,1758387609055,-3240.04922952,0.00020623,2]
[386555210,1758387609084,-1325.22,0.00020623,2]
[386555211,1758387609395,-3320.05922952,0.00020624,2]
[386555212,1758387609435,-3190.97079588,0.00020624,2]
[386555213,1758387609444,-49.07843364,0.00020624,2]
[386555214,1758387609458,-101.86728876,0.00020624,2]
[386555215,1758387609467,-1223.35271124,0.00020624,2]
[386555216,1758387609484,-869.47154096,0.00020624,2]
[386555217,1758387614470,924.48963952,0.0002058,2]
[386555218,1758387617886,4039.05146495,0.000199,2]
[386555219,1758387623093,405.88,0.00019401,2]
[386555220,1758387623623,811.76,0.00020325,2]
[386555221,1758387648390,-480.0,0.00020585,2]
[386555222,1758387648419,-480.0,0.00020586,2]
[386555223,1758387648450,-1563.89,0.00020586,2]
[386555224,1758387648480,-272.37673377,0.00020586,2]
[386555225,1758387648509,-480.0,0.00020587,2]
[386555226,1758387648540,-480.0,0.00020587,2]
[386555227,1758387648570,-480.0,0.00020587,2]
[386555228,1758387648598,-480.0,0.00020598,2]
[386555229,1758387648626,-87.47653246,0.00020598,2]
[386555230,1758387648975,-392.52346754,0.00020598,2]
[386555231,1758387649005,-488.81539216,0.00020598,2]
[386555232,1758387649036,-1421.7,0.00020614,2]
[386555233,1758387649065,-1489.92,0.00020614,2]
[386555234,1758387649094,-480.0,0.00020616,2]
[386555235,1758387649122,-254.0922806,0.00020623,2]
[386555236,1758387649403,-120.79118694,0.00020623,2]
[386555237,1758387654792,211229.38032172,0.00020488,2]
[386555238,1758387658412,-480.0,0.00020586,2]
[386555239,1758387658441,-577.76,0.00020586,2]
[386555240,1758387658470,-480.0,0.00020586,2]
[386555241,1758387658499,-670.12,0.00020587,2]
[386555242,1758387658528,-480.0,0.00020587,2]
[386555243,1758387658558,-2094.21,0.00020588,2]
[386555244,1758387658649,-435.83,0.00020588,2]
[386555245,1758387658678,-480.0,0.00020598,2]
[386555246,1758387658708,-1400.75,0.00020614,2]
[386555247,1758387658737,-480.0,0.00020614,2]
[386555248,1758387658767,-825.11653246,0.00020623,2]
[386555249,1758387658797,-500.0,0.00020623,2]
[386555250,1758387658950,-500.0,0.00020623,2]
[386555251,1758387658967,-1756.61693508,0.00020623,2]
[386555252,1758387688426,-480.0,0.00020586,2]
[386555253,1758387688455,-480.0,0.00020586,2]
[386555254,1758387688484,-480.0,0.00020586,2]
[386555255,1758387688512,-610.74,0.00020586,2]
[386555256,1758387688541,-614.27,0.00020587,2]
[386555257,1758387688570,-480.0,0.00020587,2]
[386555258,1758387688598,-480.0,0.00020587,2]
[386555259,1758387688625,-480.0,0.00020598,2]
[386555260,1758387688654,-480.0,0.00020598,2]
[386555261,1758387688684,-349.99,0.00020614,2]
[386555262,1758387688838,-130.01,0.00020585,2]
[386555263,1758387688875,-349.99,0.00020585,2]
[386555264,1758387688904,-130.01,0.00020614,2]
[386555265,1758387688932,-480.0,0.00020614,2]
[386555266,1758387688963,-219.08306492,0.00020623,2]
[386555267,1758387688990,-160.0,0.00020623,2]
[386555268,1758387689019,-300.0,0.00020623,2]
[386555269,1758387689223,-6721.84387016,0.00020624,2]
[386555270,1758387710073,390.38,0.00019366,2]
[386555271,1758387710601,780.77,0.00020288,2]
[386555272,1758387728494,-300.0,0.00020585,2]
[386555273,1758387728523,-480.0,0.00020586,2]
[386555274,1758387728553,-1661.09,0.00020586,2]
[386555275,1758387728584,-160.0,0.00020586,2]
[386555276,1758387728612,-470.75255859,0.00020586,2]
[386555277,1758387728641,-890.58,0.00020586,2]
[386555278,1758387728672,-480.0,0.00020586,2]
[386555279,1758387728700,-480.0,0.00020586,2]
[386555280,1758387728939,-160.0,0.00020587,2]
[386555281,1758387728967,-480.0,0.00020587,2]
[386555282,1758387729012,-312.00534998,0.00020587,2]
[386555283,1758387729053,-480.0,0.00020587,2]
[386555284,1758387729096,-480.0,0.00020587,2]
[386555285,1758387729136,-480.0,0.00020587,2]
[386555286,1758387729176,-480.0,0.00020598,2]
[386555287,1758387729210,-480.0,0.00020598,2]
[386555288,1758387729252,-480.0,0.00020598,2]
[386555289,1758387729294,-480.0,0.00020598,2]
[386555290,1758387729636,-360.01418286,0.00020614,2]
[386555291,1758387778579,-480.0,0.00020585,2]
[386555292,1758387778610,-480.0,0.00020585,2]
[386555293,1758387778640,-480.0,0.00020585,2]
[386555294,1758387778671,-480.0,0.00020586,2]
[386555295,1758387778701,-580.43,0.00020586,2]
[386555296,1758387778731,-558.06,0.00020586,2]
[386555297,1758387778762,-480.0,0.00020586,2]
[386555298,1758387778797,-480.0,0.00020586,2]
[386555299,1758387778826,-480.0,0.00020586,2]
[386555300,1758387778858,-55.68,0.00020586,2]
[386555301,1758387779004,-891.67,0.00020586,2]
[386555302,1758387779036,-557.00669468,0.00020587,2]
[386555303,1758387779065,-480.0,0.00020587,2]
[386555304,1758387779092,-480.0,0.00020587,2]
[386555305,1758387779122,-480.0,0.00020597,2]
[386555306,1758387779153,-480.0,0.00020612,2]